bitfinex/quotes_ETHUSD_20251026
["timestamp","ask_amount","ask_price","bid_price","bid_amount"]
[1761480696024,0.2209,4046.9,4045.8,1.5552]
[1761480696297,0.1232,4046.2,4045.8,1.5552]
[1761480696702,0.6795,4046.9,4045.9,0.02471637]
[1761480696902,0.6795,4046.9,4045.8,2.19922622]
[1761480696903,0.4586,4046.8,4045.8,1.5552]
[1761480697153,0.4586,4046.8,4045.8,2.09642262]
[1761480697437,0.4586,4046.8,4045.8,2.74044884]
[1761480698028,0.4586,4046.8,4045.8,2.09642262]
[1761480698434,0.4586,4046.8,4045.8,2.74044884]
[1761480699035,0.4586,4046.8,4045.7,3.213]
[1761480699036,0.2196,4045.9,4045.7,3.213]
[1761480699539,0.4732,4045.8,4045.7,3.213]
[1761480699724,2.94489904,4045.8,4045.4,0.002]
[1761480699900,2.49650556,4045.7,4045.4,0.002]
[1761480700104,2.96970556,4045.7,4045.4,0.002]
[1761480700422,0.4732,4045.6,4045.4,0.002]
[1761480701409,2.94502251,4045.6,4045.4,0.002]
[1761480701738,0.4732,4045.6,4045.4,0.002]
[1761480701904,0.02474099,4045.8,4045.4,0.002]
[1761480701905,0.4732,4045.5,4045.4,0.002]
[1761480703306,2.94508233,4045.5,4045.4,0.002]
[1761480704522,0.57210475,4045.5,4045.4,0.002]
[1761480705151,3.04398708,4045.5,4045.4,0.002]
[1761480705353,0.57210475,4045.5,4045.4,0.002]
[1761480705862,0.4732,4045.5,4045.4,0.002]
[1761480706020,0.2196,4045.9,4045.4,0.002]
[1761480706223,0.6928,4045.9,4045.4,0.02671943]
[1761480706529,0.6928,4045.9,4045.4,0.002]
[1761480706751,0.1232,4045.7,4045.5,0.3079]
[1761480706950,0.1232,4045.7,4045.5,0.33261882]
[1761480707273,0.4732,4046.3,4045.5,0.33261882]
[1761480707553,0.001,4047.5,4045.5,0.33261882]
[1761480707554,0.74158211,4046.5,4046.2,0.1766]
[1761480707762,0.4732,4047.2,4046.3,3.208]
[1761480708068,0.001,4047.5,4046.3,3.208]
[1761480708069,0.2196,4047.0,4046.4,0.33846]
[1761480708723,0.001,4047.1,4046.4,1.89366]
[1761480708921,0.001,4047.1,4046.5,0.02471271]
[1761480709135,0.001,4047.1,4046.4,1.89366]
[1761480709334,0.001,4047.1,4045.7,2.4717209]
[1761480709335,0.2196,4046.5,4045.5,0.3079]
[1761480709565,0.6928,4046.8,4045.7,1.5552]
[1761480709721,0.4732,4046.7,4045.7,1.5552]
[1761480710053,2.47121039,4046.6,4045.8,0.002]
[1761480710351,0.4732,4046.7,4045.8,0.002]
[1761480710529,0.4732,4046.7,4045.9,0.47672]
[1761480711422,2.47121286,4046.6,4045.8,0.002]
[1761480711824,0.4732,4046.5,4045.8,0.002]
[1761480714147,0.2196,4046.8,4045.9,0.02471637]
[1761480715159,0.6928,4046.8,4045.8,0.02671699]
[1761480715549,0.6928,4046.8,4045.9,0.4791917]
[1761480715728,0.4732,4046.7,4045.9,0.4791917]
[1761480716125,0.4732,4046.7,4045.8,0.002]
[1761480716561,2.94438759,4046.7,4045.8,0.002]
[1761480716728,0.4732,4046.7,4045.8,0.002]
[1761480716929,0.2196,4045.9,4045.8,0.002]
[1761480717341,0.6928,4045.9,4045.8,0.002]
[1761480717660,0.816,4045.9,4045.8,0.002]
[1761480717866,0.3428,4045.9,4045.8,0.002]
[1761480718431,0.816,4045.9,4045.8,0.002]
[1761480721082,3.28763795,4045.9,4045.8,0.002]
[1761480721286,0.816,4045.9,4045.8,0.002]
[1761480723465,0.1232,4045.9,4045.8,0.002]
[1761480723901,0.2196,4046.8,4045.8,0.3232]
[1761480724206,2.4716175,4047.6,4045.9,0.4424]
[1761480724207,0.1232,4046.5,4045.9,0.4424]
[1761480724403,0.1232,4046.5,4046.0,0.02471576]
[1761480724583,0.1232,4046.5,4046.0,0.14791576]
[1761480724778,0.1232,4046.5,4046.1,0.1766]
[1761480725202,0.1232,4046.5,4046.1,0.619]
[1761480725385,0.1232,4046.5,4046.1,0.1766]
[1761480725605,0.1232,4046.5,4046.2,3.21]
[1761480725786,0.1232,4046.5,4046.3,0.39769158]
[1761480726574,0.1232,4046.5,4046.0,0.14791576]
[1761480726575,0.5709,4046.5,4046.0,0.1232]
[1761480726904,0.5709,4046.5,4045.8,0.002]
[1761480726905,0.5709,4046.5,4046.1,3.21]
[1761480727104,0.02474099,4046.8,4045.8,0.002]
[1761480727105,0.2294,4045.9,4045.8,0.002]
[1761480727304,0.2294,4045.9,4045.8,3.211]
[1761480727539,0.6771,4045.9,4045.8,3.211]
[1761480727743,0.1232,4046.0,4045.8,3.5321]
[1761480727917,0.4477,4046.7,4045.9,1.5552]
[1761480728238,0.1232,4046.2,4045.9,1.5552]
[1761480728808,0.5865,4046.2,4045.9,1.5552]
[1761480729208,0.4633,4046.1,4045.8,3.5321]
[1761480729441,0.4633,4046.1,4045.8,3.211]
[1761480729442,0.2195,4045.9,4045.8,3.211]
[1761480730141,0.4633,4046.1,4045.8,3.211]
[1761480731742,0.1232,4046.2,4045.8,3.211]
[1761480732055,0.001,4046.6,4046.1,0.1766]
[1761480732214,0.001,4046.6,4045.9,0.34581637]
[1761480732215,0.1232,4046.4,4045.9,0.34581637]
[1761480732409,0.1232,4046.4,4045.9,0.3211]
[1761480733557,0.001,4047.1,4046.3,0.1766]
[1761480733844,0.001,4047.1,4046.8,0.64883918]
[1761480734147,0.001,4047.5,4047.1,0.50688]
[1761480734366,0.001,4047.5,4047.0,0.85870163]
[1761480734367,0.001,4047.5,4047.4,0.50688]
[1761480734660,0.001,4047.5,4047.4,5.8829849]
[1761480734807,0.001,4047.5,4047.4,5.2353]
[1761480736366,0.001,4047.5,4047.4,4.7662]
[1761480736526,0.001,4047.5,4047.4,1.5552]
[1761480736860,0.001,4047.5,4047.4,4.7652]
[1761480737157,0.4643,4047.5,4047.4,3.21]
[1761480738265,0.4643,4047.5,4046.3,2.2009]
[1761480738266,2.93497135,4047.5,4047.2,3.211]
[1761480738450,0.4643,4047.5,4047.2,3.211]
[1761480739043,0.4643,4047.5,4046.3,0.1766]
[1761480739044,2.47088976,4047.2,4045.9,0.3211]
[1761480739256,2.47080486,4047.3,4046.1,1.5552]
[1761480739538,0.4633,4047.3,4046.0,3.211]
[1761480739860,0.02474099,4047.4,4046.0,3.211]
[1761480739861,2.47090944,4047.1,4046.0,3.211]
[1761480740039,0.4633,4047.0,4046.1,1.5552]
[1761480740427,0.2195,4046.9,4046.0,3.211]
[1761480740627,0.2195,4047.4,4046.1,1.8765]
[1761480740833,0.2195,4047.4,4046.0,3.211]
[1761480740834,2.47120677,4046.7,4046.0,3.211]
[1761480741356,0.4633,4046.6,4046.0,3.211]
[1761480741763,0.2195,4047.4,4046.1,1.5552]
[1761480742064,0.001,4047.5,4046.5,0.1746]
[1761480742361,0.001,4047.5,4046.7,1.5552]
[1761480742663,0.001,4047.5,4046.8,0.56817209]
[1761480743031,0.001,4047.5,4046.8,0.54346121]
[1761480743228,0.001,4047.5,4046.9,0.02471027]
[1761480743434,0.001,4047.5,4047.2,0.1232]
[1761480743632,0.001,4047.5,4047.3,3.217]
[1761480743833,0.001,4047.5,4047.4,1.88922]
[1761480744045,0.001,4047.5,4047.4,1.91392721]
[1761480744255,0.001,4047.5,4047.4,2.38302721]
[1761480744763,0.001,4047.5,4047.4,5.36062915]
[1761480744964,0.001,4047.5,4047.4,5.33592194]
[1761480745165,0.001,4047.5,4047.4,2.8652]
[1761480746059,0.001,4047.5,4047.4,2.35832]
[1761480746361,0.001,4047.5,4047.4,0.33402]
[1761480746563,0.001,4047.5,4047.4,3.218]
[1761480746763,0.001,4047.5,4047.4,5.26700721]
[1761480747071,0.001,4047.5,4047.4,5.2423]
[1761480748875,0.001,4047.5,4047.4,4.7732]
[1761480749047,0.001,4047.5,4047.4,1.5552]
[1761480749245,0.4643,4047.5,4046.8,0.54546121]
[1761480749570,0.4643,4047.5,4046.9,3.219]
[1761480749749,0.001,4047.5,4046.9,3.219]
[1761480750164,0.001,4047.5,4047.0,0.02470966]
[1761480750681,0.001,4047.5,4046.9,3.219]
[1761480750881,0.001,4047.5,4047.0,1.57990966]
[1761480751658,0.001,4047.5,4047.0,1.5552]
[1761480751865,0.4633,4047.4,4047.1,3.221]
[1761480752993,2.47078299,4047.3,4046.8,0.002]
[1761480753170,0.2195,4046.9,4046.8,0.002]
[1761480753364,0.2195,4046.9,4046.8,3.146]
[1761480753582,0.6828,4046.9,4046.8,3.146]
[1761480753793,0.806,4046.9,4046.8,3.146]
[1761480757291,3.2770272,4046.9,4046.8,3.146]
[1761480757602,5.24064819,4046.9,4046.8,0.002]
[1761480757804,5.2159072,4046.9,4046.8,0.002]
[1761480761786,5.2159072,4046.9,4045.9,0.002]
[1761480761787,2.97845686,4046.0,4045.9,0.002]
[1761480761968,7.78339785,4046.0,4045.9,0.002]
[1761480762168,8.22475686,4046.0,4045.9,0.002]
[1761480765229,8.22875686,4046.0,4045.9,0.002]
[1761480765434,2.0213,4046.0,4045.9,0.002]
[1761480765620,4.49287686,4046.0,4045.9,0.002]
[1761480765937,5.02449785,4046.0,4045.9,0.002]
[1761480766309,8.25449785,4046.0,4045.9,0.002]
[1761480766522,8.22975686,4046.0,4045.9,0.002]
[1761480766726,8.23175686,4046.0,4045.9,0.002]
[1761480766926,4.99975686,4046.0,4045.9,0.002]
[1761480767118,5.02449785,4046.0,4045.9,0.002]
[1761480767933,2.47194344,4045.4,4044.3,0.3993]
[1761480768102,2.471999,4045.4,4044.3,0.3993]
[1761480768302,0.02474099,4045.6,4044.3,0.3993]
[1761480768527,2.4720112,4045.3,4044.3,0.3993]
[1761480768799,2.70639286,4045.9,4044.3,0.42402615]
[1761480769002,2.47171576,4045.8,4044.3,0.42402615]
[1761480769254,1.57994099,4045.7,4044.2,0.215]
[1761480769552,2.47181379,4045.7,4044.3,0.02472615]
[1761480769714,4.02689904,4045.8,4044.2,0.215]
[1761480770034,0.02474099,4045.7,4043.7,0.002]
[1761480770237,2.47194718,4045.4,4044.2,2.964]
[1761480770400,1.5552,4045.4,4044.3,0.31001]
[1761480770600,4.02726311,4045.3,4044.3,0.31001]
[1761480770801,0.4661,4045.4,4044.3,0.31001]
[1761480771032,2.0213,4045.4,4044.3,0.31001]
[1761480771202,0.4661,4045.4,4044.4,0.382031]
[1761480772230,1.5552,4045.3,4044.4,0.382031]
[1761480772532,0.02474099,4045.2,4044.4,0.382031]
[1761480772744,2.47200454,4045.3,4044.4,0.382031]
[1761480773041,2.0213,4045.4,4044.4,0.382031]
[1761480773344,2.4720973,4045.2,4044.4,0.382031]
[1761480773936,0.2347,4045.9,4044.5,0.3346031]
[1761480774253,0.02474099,4045.8,4044.5,0.3346031]
[1761480774410,0.53162099,4045.8,4044.3,2.529]
[1761480774609,2.47202575,4045.3,4044.3,2.529]
[1761480775142,0.4661,4045.7,4044.3,2.529]
[1761480775143,0.4661,4045.7,4044.4,0.4102]
[1761480775944,2.47200126,4045.4,4044.4,0.4102]
[1761480776147,2.47182123,4045.6,4044.4,0.71773]
[1761480776373,1.5552,4045.8,4044.5,0.43492493]
[1761480776551,2.47190848,4045.5,4044.4,0.30753]
[1761480776843,1.5552,4045.8,4044.5,0.4102]
[1761480777046,4.0269506,4045.8,4044.6,0.324673]
[1761480777214,2.96262144,4045.7,4044.6,0.324673]
[1761480777651,0.124,4045.1,4044.6,0.448673]
[1761480777852,0.124,4045.1,4044.6,0.324673]
[1761480778229,0.4661,4045.0,4044.3,2.529]
[1761480778430,0.124,4044.6,4044.3,2.529]
[1761480780264,0.2347,4045.9,4044.4,0.43492554]
[1761480780486,0.124,4045.2,4044.5,0.29639255]
[1761480780632,0.2347,4046.2,4044.6,0.02472432]
[1761480780838,0.2347,4046.2,4044.6,0.43492432]
[1761480781254,0.4661,4046.6,4044.6,0.4102]
[1761480781466,0.001,4045.8,4044.6,0.4102]
[1761480781672,0.001,4045.8,4044.7,0.22617926]
[1761480782043,0.001,4045.8,4044.8,0.4102]
[1761480782247,2.47201064,4045.3,4044.3,0.002]
[1761480782457,2.47207249,4045.2,4044.3,3.234]
[1761480782772,2.47207249,4045.2,4044.4,0.33701]
[1761480783133,2.49662724,4045.5,4044.4,0.33701]
[1761480783134,2.47212836,4045.1,4044.4,0.33701]
[1761480783369,2.47207005,4045.2,4044.3,3.234]
[1761480783572,2.49690122,4045.1,4044.3,3.234]
[1761480783747,2.47230356,4044.9,4044.3,3.234]
[1761480784073,2.47237678,4044.7,4044.3,0.002]
[1761480784274,2.4719346,4045.5,4044.3,0.002]
[1761480784275,1.5552,4045.4,4044.4,0.1341]
[1761480784569,0.6647,4045.6,4044.4,0.1341]
[1761480784772,0.46994099,4045.5,4044.4,0.1341]
[1761480785080,2.47218882,4045.0,4044.4,0.1341]
[1761480785234,2.47213507,4045.1,4044.3,0.002]
[1761480785438,2.4721985,4045.0,4044.3,0.002]
[1761480785689,0.02474099,4045.2,4044.3,0.002]
[1761480785690,2.47213322,4045.1,4044.3,0.002]
[1761480785972,1.5552,4045.5,4044.3,0.002]
[1761480786271,2.47200306,4045.4,4044.3,0.4122]
[1761480786966,0.02474099,4045.4,4044.3,0.4122]
[1761480787162,2.47208088,4045.2,4044.3,0.4122]
[1761480787675,2.47208088,4045.2,4044.3,0.002]
[1761480788478,0.4452,4045.4,4044.3,0.002]
[1761480788676,2.47194667,4045.4,4044.3,0.4122]
[1761480788986,0.2195,4045.6,4044.4,0.02472554]
[1761480789191,2.471829,4045.6,4044.3,0.4122]
[1761480789342,0.02474099,4045.7,4044.3,0.4122]
[1761480789945,0.001,4045.8,4045.6,0.1016]
[1761480790390,0.001,4045.8,4045.6,0.43466]
[1761480791434,0.001,4045.8,4045.7,0.4102]
[1761480792045,0.001,4045.8,4045.6,0.43466]
[1761480792771,0.001,4045.8,4045.3,3.229]
[1761480793079,0.1232,4045.7,4045.3,3.229]
[1761480795045,0.001,4045.8,4045.3,3.229]
[1761480795270,0.001,4045.8,4045.4,0.5334]
[1761480795468,0.001,4045.8,4045.4,0.1232]
[1761480795671,0.001,4045.8,4045.5,0.34538]
[1761480795874,0.001,4045.8,4045.5,0.4102]
[1761480796273,0.001,4045.8,4045.4,0.1232]
[1761480796884,0.001,4045.8,4045.5,0.4102]
[1761480798463,0.001,4045.8,4045.7,0.1232]
[1761480798892,0.001,4045.8,4045.7,0.5581176]
[1761480800058,0.001,4045.8,4045.7,0.76944936]
[1761480800360,0.001,4045.8,4045.7,0.1232]
[1761480800554,0.001,4045.8,4045.7,3.3462]
[1761480801980,0.001,4045.8,4045.7,3.223]
[1761480802387,0.1242,4045.8,4045.7,3.223]
[1761480803067,0.001,4045.8,4045.7,3.223]
[1761480803271,0.1242,4045.8,4045.7,3.223]
[1761480803783,0.1242,4045.8,4045.7,3.222]
[1761480803979,3.04949904,4045.8,4044.8,0.64800211]
[1761480804169,0.5778,4045.8,4045.0,0.124]
[1761480804367,3.04950076,4045.8,4045.0,0.124]
[1761480804570,0.1242,4045.8,4045.0,0.124]
[1761480804775,0.1232,4045.4,4044.9,3.22]
[1761480806177,0.1232,4045.4,4044.9,3.59542]
[1761480806361,0.1232,4045.4,4044.9,4.00562]
[1761480806575,0.1232,4045.4,4044.9,3.59542]
[1761480807781,0.1232,4045.4,4044.9,4.00562]
[1761480807988,0.1232,4045.4,4045.0,0.4102]
[1761480808388,0.1232,4045.4,4045.1,0.1016]
[1761480808590,0.001,4045.8,4045.1,0.524722]
[1761480808883,0.1242,4045.8,4045.2,0.124]
[1761480809704,0.1242,4045.8,4045.2,0.5342]
[1761480809903,0.1242,4045.8,4045.2,0.124]
[1761480810700,0.1242,4045.8,4045.1,0.524722]
[1761480810701,0.001,4045.8,4045.3,0.43492004]
[1761480810914,0.001,4045.8,4045.7,0.1232]
[1761480811097,0.001,4045.8,4045.7,3.3382]
[1761480812326,0.001,4045.8,4045.7,3.67102]
[1761480813439,0.4546,4045.8,4045.7,3.214]
[1761480813739,0.5778,4045.8,4045.7,3.214]
[1761480814098,3.04949904,4045.8,4044.5,0.64800211]
[1761480814297,0.1232,4045.5,4045.0,0.124]
[1761480814498,0.5768,4045.5,4045.1,3.13]
[1761480814947,0.4536,4045.4,4045.1,3.13]
[1761480816647,2.92558948,4045.4,4045.1,3.13]
[1761480816930,0.124,4045.2,4045.1,3.13]
[1761480817423,0.5776,4045.2,4045.1,3.13]
[1761480818313,0.124,4045.2,4045.1,3.13]
[1761480819818,0.124,4045.2,4045.1,3.2316]
[1761480820019,0.1232,4045.5,4045.1,3.2316]
[1761480820997,0.1232,4045.5,4044.4,0.64800211]
[1761480820998,0.4712,4045.4,4044.2,0.64800211]
[1761480821226,2.47207697,4045.2,4044.2,0.64800211]
[1761480821402,2.47202123,4045.3,4044.4,3.21]
[1761480821609,2.47207041,4045.2,4044.4,3.21]
[1761480821928,2.94327041,4045.2,4044.4,3.21]
[1761480822622,0.4712,4045.2,4044.4,3.21]
[1761480822829,0.4712,4045.2,4044.4,3.54481]
[1761480824129,2.94330187,4045.2,4044.4,0.33481]
[1761480824300,2.94330187,4045.2,4044.5,3.211]
[1761480824501,0.4712,4045.1,4044.5,3.211]
[1761480825420,2.94332809,4045.1,4044.5,3.211]
[1761480825601,0.2243,4044.6,4044.1,0.002]
[1761480825933,2.47255464,4044.4,4044.1,0.002]
[1761480826302,2.94375464,4044.4,4044.1,0.002]
[1761480826497,0.2243,4044.6,4044.1,0.002]
[1761480826702,2.47255464,4044.4,4044.1,0.002]
[1761480826928,2.94375464,4044.4,4044.1,0.002]
[1761480830033,0.4712,4044.4,4044.1,0.002]
[1761480830337,2.69678426,4044.6,4044.1,0.002]
[1761480830338,2.47250947,4044.5,4044.1,0.002]
[1761480830634,2.94370947,4044.5,4044.1,0.002]
[1761480830803,2.69675001,4044.6,4044.1,0.002]
[1761480831005,0.124,4044.4,4044.1,0.002]
[1761480831235,2.59655464,4044.4,4044.1,0.002]
[1761480831433,0.124,4044.4,4044.1,0.002]
[1761480832099,3.35553562,4045.9,4044.2,0.1341]
[1761480832100,0.2243,4045.2,4044.2,0.1341]
[1761480832314,0.124,4044.7,4044.2,0.1341]
[1761480832704,0.124,4044.7,4044.3,0.4122]
[1761480832899,0.124,4044.7,4044.3,0.002]
[1761480834735,2.59638771,4044.7,4044.3,0.002]
[1761480834937,0.124,4044.7,4044.3,0.002]
[1761480836942,0.124,4044.7,4044.3,0.4122]
[1761480838049,0.124,4044.7,4044.3,0.002]
[1761480839538,0.2253,4045.2,4044.4,0.4102]
[1761480839738,0.124,4044.9,4044.4,0.4102]
[1761480840348,0.124,4044.9,4044.3,0.002]
[1761480842337,0.001,4045.2,4044.7,0.124]
[1761480842543,0.001,4045.2,4045.1,0.1016]
[1761480842756,0.001,4045.2,4045.1,0.25032126]
[1761480842950,0.001,4045.2,4045.1,0.66052126]
[1761480843151,0.001,4045.2,4045.1,0.6358]
[1761480844852,0.001,4045.2,4045.1,0.2256]
[1761480845258,0.001,4045.2,4045.1,0.49908]
[1761480845456,0.001,4045.2,4044.9,1.6792]
[1761480846876,0.4623,4045.2,4045.0,3.21]
[1761480847252,0.4613,4045.1,4045.0,3.21]
[1761480847456,3.05742677,4045.1,4045.0,3.21]
[1761480847761,0.5853,4045.1,4045.0,3.21]
[1761480849455,0.5853,4045.1,4044.4,0.124]
[1761480849456,2.47218788,4045.0,4044.4,0.124]
[1761480849662,2.94088788,4045.0,4044.5,3.209]
[1761480849862,0.124,4045.1,4044.5,3.209]
[1761480849863,2.94097728,4044.9,4044.5,3.209]
[1761480850057,2.47243237,4044.6,4044.5,3.209]
[1761480850265,0.4687,4044.8,4044.5,3.209]
[1761480850590,2.47313494,4045.1,4044.5,3.209]
[1761480850591,0.5927,4044.7,4044.5,3.209]
[1761480850999,0.4687,4044.6,4044.5,3.209]
[1761480851171,2.94113237,4044.6,4044.5,3.209]
[1761480853968,2.96587336,4044.6,4044.5,3.209]
[1761480855010,2.94113237,4044.6,4044.5,3.209]
[1761480855211,2.96587336,4044.6,4044.5,3.209]
[1761480855423,2.94113237,4044.6,4044.5,3.209]
[1761480857199,2.47255464,4044.4,4044.3,0.002]
[1761480857430,2.59655464,4044.4,4044.3,0.002]
[1761480857710,3.06525464,4044.4,4044.3,0.002]
[1761480857933,3.44813464,4044.4,4044.3,0.002]
[1761480858118,2.4729215,4043.8,4043.7,0.002]
[1761480858317,2.49766249,4043.8,4043.7,0.002]
[1761480858632,2.96636249,4043.8,4043.7,0.002]
[1761480858841,3.63524249,4043.8,4043.7,0.002]
[1761480861233,5.19044249,4043.8,4043.7,0.002]
[1761480861537,5.1657015,4043.8,4043.7,0.002]
[1761480864211,8.3747015,4043.8,4043.7,0.002]
[1761480864541,5.1657015,4043.8,4043.7,0.002]
[1761480864840,8.3747015,4043.8,4043.7,0.002]
[1761480866034,5.1657015,4043.8,4043.7,0.002]
[1761480866237,8.3757015,4043.8,4043.7,0.002]
[1761480867237,5.1657015,4043.8,4043.7,0.002]
[1761480867610,8.3757015,4043.8,4043.7,0.002]
[1761480868024,8.4997015,4043.8,4043.7,0.002]
[1761480868902,5.2897015,4043.8,4043.7,0.002]
[1761480869103,4.3141215,4043.8,4043.7,0.002]
[1761480869326,4.33886249,4043.8,4043.7,0.002]
[1761480869540,4.80756249,4043.8,4043.7,0.002]
[1761480869711,4.64556249,4043.8,4043.7,0.002]
[1761480870115,4.74450418,4043.8,4043.7,0.002]
[1761480870930,5.22664319,4043.8,4043.7,0.002]
[1761480872443,8.43564319,4043.8,4043.7,0.002]
[1761480874740,3.67144319,4043.8,4043.7,0.002]
[1761480875338,2.69586319,4043.8,4043.7,0.002]
[1761480876033,2.5969215,4043.8,4043.7,0.002]
[1761480876820,3.0656215,4043.8,4043.7,0.002]
[1761480878936,0.124,4043.8,4043.7,0.002]
[1761480879123,0.124,4043.8,4043.7,0.4182]
[1761480879757,2.47243428,4044.6,4043.7,0.4182]
[1761480880056,3.21,4045.1,4043.7,0.4182]
[1761480880057,0.124,4044.0,4043.7,0.4182]
[1761480883478,2.47239087,4044.7,4043.7,0.4182]
[1761480883677,0.124,4044.4,4043.7,0.4182]
[1761480884030,0.124,4044.4,4044.3,0.1341]
[1761480886335,2.59655464,4044.4,4044.3,0.1341]
[1761480887067,2.59655464,4044.4,4043.7,0.002]
[1761480887231,2.59655464,4044.4,4043.7,0.4182]
[1761480887232,0.124,4044.4,4043.7,0.4182]
[1761480888782,2.59656884,4044.4,4043.7,0.4182]
[1761480889838,2.47262792,4044.3,4043.7,0.002]
[1761480890581,2.47267692,4044.2,4043.7,3.209]
[1761480890765,0.124,4044.0,4043.7,0.002]
[1761480891899,2.59680468,4044.0,4043.7,0.002]
[1761480892239,2.4729215,4043.8,4043.7,0.002]
[1761480893182,2.9291215,4043.8,4043.7,0.002]
[1761480893347,2.4729215,4043.8,4043.7,0.002]
[1761480893863,2.9291215,4043.8,4043.7,0.002]
[1761480894062,2.59683549,4044.0,4043.7,0.002]
[1761480894063,0.124,4044.0,4043.7,0.002]
[1761480894243,2.4729215,4043.8,4043.7,0.002]
[1761480894438,0.124,4044.0,4043.7,0.002]
[1761480894773,2.47286035,4043.9,4043.7,0.002]
[1761480894939,0.124,4044.0,4043.7,0.4182]
[1761480895664,0.001,4044.5,4043.7,0.4182]
[1761480895992,0.124,4044.2,4043.7,0.4182]
[1761480896197,0.001,4044.5,4044.4,0.1341]
[1761480896646,0.001,4044.5,4044.4,0.92143554]
[1761480897081,0.001,4044.5,4044.4,0.89671]
[1761480897575,0.001,4044.5,4044.4,1.02071]
[1761480897778,0.001,4044.5,4044.4,1.52759]
[1761480898318,0.001,4044.5,4044.4,5.55534464]
[1761480898794,0.001,4044.5,4044.4,3.08279]
[1761480899011,0.001,4044.5,4044.4,6.20240187]
[1761480899166,0.001,4044.5,4044.4,5.84126872]
[1761480899370,0.001,4044.5,4044.4,6.70575594]
[1761480899587,0.001,4044.5,4044.4,5.84126872]
[1761480900202,0.001,4044.5,4044.4,9.72932117]
[1761480900405,0.001,4044.5,4044.4,8.44126872]
[1761480900939,0.001,4045.2,4044.4,8.44126872]
[1761480900940,1.1e-07,4045.2,4045.1,2.97900677]
[1761480901106,0.001,4045.8,4045.5,4.53396233]
[1761480901311,0.001,4046.1,4045.5,4.53396233]
[1761480901312,0.001,4046.1,4045.5,3.205]
[1761480901508,0.001,4046.1,4045.6,4.97481771]
[1761480901694,0.001,4046.1,4045.9,2.97851795]
[1761480901894,0.001,4046.1,4045.9,5.27836316]
[1761480902100,0.001,4046.1,4045.9,3.22292521]
[1761480902351,0.001,4046.1,4045.9,5.71927953]
[1761480902526,0.001,4046.1,4045.9,5.98048724]
[1761480902833,0.001,4046.1,4045.9,5.69456316]
[1761480903390,0.001,4046.1,4045.9,3.22292521]
[1761480903625,0.001,4046.1,4045.9,2.47828]
[1761480904000,0.001,4046.1,4045.9,5.2605584]
[1761480904220,0.001,4048.0,4046.2,0.50688]
[1761480904534,0.001,4048.0,4046.4,2.06208]
[1761480904833,0.001,4048.0,4046.4,4.55812085]
[1761480905130,0.001,4048.0,4046.6,0.50688]
[1761480905313,0.001,4047.2,4046.6,2.0867921]
[1761480905513,0.001,4047.2,4046.6,0.92308]
[1761480906097,0.001,4047.2,4046.6,0.9477921]
[1761480906292,0.001,4047.2,4046.6,4.97420249]
[1761480906532,0.001,4047.2,4046.6,6.27764429]
[1761480906744,0.001,4047.2,4046.6,6.53885627]
[1761480907453,0.001,4047.2,4046.6,7.48954156]
[1761480907730,0.001,4048.0,4047.4,0.50688]
[1761480908053,0.001,4048.0,4047.4,7.73680194]
[1761480908263,0.001,4048.0,4047.4,9.44289905]
[1761480908564,0.001,4048.0,4047.4,6.97217711]
[1761480908723,0.001,4048.0,4047.4,9.44289905]
[1761480910125,0.001,4048.0,4047.4,6.97217711]
[1761480910427,0.001,4048.0,4047.4,9.44289905]
[1761480911079,0.001,4048.0,4047.4,9.56609905]
[1761480911242,0.001,4048.0,4047.4,7.09537711]
[1761480911440,0.001,4048.0,4047.4,9.56609905]
[1761480912723,0.001,4048.0,4047.4,7.09537711]
[1761480913829,0.001,4048.0,4047.4,9.56609905]
[1761480914028,0.001,4048.0,4047.4,7.09537711]
[1761480914253,0.001,4048.0,4047.4,6.67917711]
[1761480914453,0.001,4048.0,4047.4,7.09537711]
[1761480914976,0.001,4048.0,4047.4,9.56609905]
[1761480915549,0.001,4048.0,4047.4,7.09537711]
[1761480916252,0.001,4048.0,4047.4,9.56609905]
[1761480916577,0.001,4048.0,4047.4,9.05921905]
[1761480916806,0.001,4048.0,4047.4,9.56609905]
[1761480918789,0.001,4048.0,4047.4,9.72882313]
[1761480918989,0.001,4048.4,4047.9,2.97729675]
[1761480919284,0.001,4048.4,4048.3,0.64098]
[1761480919485,0.001,4048.4,4048.0,5.05392967]
[1761480919486,0.001,4048.4,4048.0,0.29772967]
[1761480919684,0.001,4048.4,4048.2,1.5552]
[1761480919884,0.001,4048.4,4048.3,4.7562]
[1761480920996,0.001,4048.4,4048.3,8.14945266]
[1761480921355,0.001,4048.4,4048.3,5.26308]
[1761480921765,0.001,4048.4,4048.3,7.73325266]
[1761480921969,0.001,4048.4,4048.3,9.18321649]
[1761480922386,0.001,4048.4,4048.3,9.46914057]
[1761480923279,0.001,4048.4,4048.3,9.43051649]
[1761480924080,0.001,4048.4,4048.3,5.81331649]
[1761480924276,0.001,4048.4,4048.3,9.42951649]
[1761480924491,0.001,4048.4,4048.3,8.76601649]
[1761480925677,0.001,4048.4,4048.3,9.01331649]
[1761480926087,0.001,4048.4,4048.3,8.76601649]